bitfinex-derivatives/quotes_BTCF0:USTF0_20241125
["timestamp","ask_amount","ask_price","bid_price","bid_amount"]
[1732526160726,0.411457,98599.0,98588.0,0.13152]
[1732526161830,0.411457,98599.0,98587.0,0.40292522]
[1732526161831,0.3608,98599.0,98587.0,0.40292522]
[1732526162130,0.13148,98598.0,98587.0,0.40292522]
[1732526162820,0.050661,98592.0,98587.0,0.04212522]
[1732526163021,0.13148,98598.0,98587.0,0.04212522]
[1732526163418,0.1211175,98588.0,98587.0,0.04212522]
[1732526163614,0.050661,98592.0,98587.0,0.04212522]
[1732526163820,0.15183762,98594.0,98587.0,0.04212522]
[1732526164116,0.13148,98598.0,98587.0,7.593e-05]
[1732526164117,0.411462,98589.0,98587.0,7.593e-05]
[1732526164828,0.56329962,98589.0,98587.0,7.593e-05]
[1732526165019,0.04928272,98588.0,98587.0,7.593e-05]
[1732526165426,0.04928305,98588.0,98587.0,7.593e-05]
[1732526166330,0.04928361,98588.0,98587.0,7.593e-05]
[1732526166625,0.0492836,98588.0,98587.0,7.593e-05]
[1732526166842,0.04928297,98588.0,98587.0,7.593e-05]
[1732526167131,0.411462,98589.0,98587.0,7.593e-05]
[1732526167330,0.15139081,98588.0,98587.0,7.593e-05]
[1732526167522,0.04928293,98588.0,98587.0,7.593e-05]
[1732526169135,0.54346201,98589.0,98587.0,7.593e-05]
[1732526169334,0.15139851,98588.0,98587.0,7.593e-05]
[1732526169632,0.36132001,98589.0,98587.0,7.593e-05]
[1732526169834,0.3608,98589.0,98587.0,7.593e-05]
[1732526170145,0.11102134,98591.0,98590.0,0.050661]
[1732526170334,0.3608,98599.0,98590.0,0.050661]
[1732526170335,0.11102134,98592.0,98590.0,0.354941]
[1732526170531,9.873e-05,98601.0,98600.0,0.050656]
[1732526170732,9.873e-05,98601.0,98600.0,0.411456]
[1732526171130,0.36079873,98609.0,98604.0,0.050654]
[1732526171825,0.41145073,98609.0,98597.0,0.182137]
[1732526172227,0.41145073,98609.0,98597.0,0.050657]
[1732526172437,0.050653,98606.0,98597.0,0.050657]
[1732526172640,0.36079873,98609.0,98592.0,0.3608]
[1732526172837,0.36079873,98609.0,98598.0,0.050657]
[1732526173033,0.36079873,98609.0,98599.0,0.050656]
[1732526174140,0.41145073,98609.0,98599.0,0.050656]
[1732526175439,0.3608,98605.0,98599.0,0.050656]
[1732526175633,0.3608,98605.0,98592.0,0.04312984]
[1732526175914,0.3608,98605.0,98590.0,0.73443468]
[1732526176040,0.3608,98605.0,98590.0,0.60239468]
[1732526176341,0.050652,98609.0,98590.0,0.73383468]
[1732526176539,0.3608,98603.0,98597.0,0.050658]
[1732526176745,0.050652,98609.0,98597.0,0.050658]
[1732526176943,0.3608,98605.0,98597.0,0.050658]
[1732526177144,0.13144,98611.0,98597.0,0.050658]
[1732526177343,0.3608,98604.0,98597.0,0.050658]
[1732526177840,0.3608,98602.0,98592.0,0.24159468]
[1732526178436,0.15141121,98599.0,98590.0,0.62516716]
[1732526178739,0.51221121,98602.0,98600.0,0.050656]
[1732526179041,0.15141121,98604.0,98603.0,0.050655]
[1732526179243,0.15141121,98604.0,98590.0,0.62456716]
[1732526179244,0.18220515,98609.0,98594.0,0.08885963]
[1732526179484,0.18220515,98609.0,98590.0,0.53570753]
[1732526179485,0.18220515,98615.0,98605.0,0.3608]
[1732526179637,0.15154406,98608.0,98606.0,0.050653]
[1732526179835,0.15154406,98608.0,98607.0,0.050652]
[1732526180342,0.04926827,98608.0,98607.0,0.050652]
[1732526180536,0.04926827,98613.0,98607.0,0.050652]
[1732526180732,0.04926827,98613.0,98608.0,0.050652]
[1732526181238,0.04926827,98613.0,98605.0,0.3608]
[1732526181540,0.1516079,98607.0,98606.0,0.050653]
[1732526181943,0.1516079,98608.0,98606.0,0.050653]
[1732526182245,0.18229364,98618.0,98607.0,0.30424]
[1732526182246,0.1516079,98614.0,98607.0,0.30424]
[1732526182447,8.849e-05,98618.0,98607.0,0.30424]
[1732526182448,8.849e-05,98618.0,98616.0,0.050648]
[1732526182965,8.849e-05,98618.0,98617.0,0.3042]
[1732526183343,0.1516079,98627.0,98625.0,0.050643]
[1732526183543,0.1516079,98629.0,98621.0,0.3608]
[1732526183844,0.1516079,98628.0,98626.0,0.050643]
[1732526184246,0.050641,98630.0,98625.0,0.13144]
[1732526184247,0.1516079,98630.0,98625.0,0.13144]
[1732526184446,0.00010597,98650.0,98629.0,0.3608]
[1732526184650,0.00010597,98650.0,98649.0,0.050631]
[1732526184852,0.00010597,98650.0,98649.0,0.354751]
[1732526185038,0.00010597,98650.0,98649.0,0.050631]
[1732526185438,0.00010597,98650.0,98642.0,0.3608]
[1732526185439,0.050634,98643.0,98642.0,0.3608]
[1732526185743,0.050634,98643.0,98642.0,0.40395018]
[1732526186548,0.00010597,98650.0,98642.0,0.40395018]
[1732526187255,0.05073697,98650.0,98642.0,0.40395018]
[1732526187646,0.00010597,98650.0,98642.0,0.40395018]
[1732526187849,0.00010597,98650.0,98648.0,0.050631]
[1732526188053,0.00010597,98650.0,98649.0,0.30412]
[1732526189054,5.97e-06,98650.0,98648.0,0.050631]
[1732526190266,0.3608,98649.0,98648.0,0.050631]
[1732526190462,0.3608,98649.0,98642.0,0.04315018]
[1732526190667,0.3608,98649.0,98643.0,0.050634]
[1732526191460,0.3608,98649.0,98635.0,0.13212]
[1732526191461,0.3608,98649.0,98636.0,0.050638]
[1732526191667,0.411431,98649.0,98636.0,0.050638]
[1732526192074,0.08885963,98646.0,98636.0,0.050638]
[1732526193166,0.08885963,98646.0,98630.0,0.04331774]
[1732526193365,0.08885963,98646.0,98629.0,0.3608]
[1732526193366,0.050634,98644.0,98629.0,0.411441]
[1732526193564,0.08885963,98640.0,98629.0,0.411441]
[1732526194169,0.050634,98643.0,98629.0,0.411441]
[1732526194170,0.050634,98643.0,98631.0,0.05064]
[1732526194381,0.3608,98649.0,98633.0,0.050639]
[1732526194566,0.411431,98649.0,98633.0,0.050639]
[1732526194769,0.3608,98649.0,98633.0,0.050639]
[1732526195163,0.3608,98649.0,98647.0,0.050632]
[1732526195574,5.97e-06,98650.0,98647.0,0.050632]
[1732526196268,5.97e-06,98650.0,98647.0,0.04299562]
[1732526196463,5.97e-06,98650.0,98642.0,0.050634]
[1732526197270,5.97e-06,98650.0,98638.0,0.40438846]
[1732526197479,5.97e-06,98650.0,98629.0,0.3608]
[1732526197480,0.3608,98639.0,98629.0,0.3608]
[1732526197673,0.3608,98639.0,98628.0,0.13212]
[1732526197881,0.01015423,98638.0,98631.0,0.05064]
[1732526198172,0.01015423,98638.0,98637.0,0.050637]
[1732526198372,0.01015423,98648.0,98632.0,0.05064]
[1732526198577,0.3608,98649.0,98631.0,0.3608]
[1732526198578,0.01015423,98647.0,98631.0,0.3608]
[1732526198877,5.97e-06,98650.0,98640.0,0.3608]
[1732526198878,0.00999081,98646.0,98640.0,0.3608]
[1732526199075,5.97e-06,98650.0,98645.0,0.050633]
[1732526199268,5.97e-06,98650.0,98648.0,0.411431]
[1732526200470,5.97e-06,98650.0,98648.0,0.45474223]
[1732526202380,5.97e-06,98650.0,98642.0,0.050634]
[1732526202381,0.3608,98649.0,98642.0,0.050634]
[1732526202581,5.97e-06,98650.0,98642.0,0.050634]
[1732526202582,0.01013822,98648.0,98642.0,0.050634]
[1732526202873,0.05063697,98650.0,98634.0,0.13208]
[1732526203076,5.97e-06,98650.0,98646.0,0.050633]
[1732526203276,5.97e-06,98650.0,98647.0,0.050632]
[1732526203479,5.97e-06,98650.0,98648.0,0.050631]
[1732526204576,0.01000854,98650.0,98648.0,0.050631]
[1732526204774,0.01000257,98649.0,98648.0,0.050631]
[1732526204974,5.97e-06,98650.0,98648.0,0.050631]
[1732526204975,5.97e-06,98650.0,98649.0,0.42164413]
[1732526205188,0.050618,98674.0,98663.0,0.050624]
[1732526205383,0.050618,98674.0,98664.0,0.050623]
[1732526205384,0.01034133,98666.0,98664.0,0.050623]
[1732526205573,0.050618,98674.0,98664.0,0.050623]
[1732526205974,0.050619,98673.0,98664.0,0.050623]
[1732526206281,0.18220515,98677.0,98659.0,0.13208]
[1732526206477,0.13208,98679.0,98659.0,0.13208]
[1732526206478,0.05062,98670.0,98665.0,0.050623]
[1732526206880,0.02812269,98666.0,98665.0,0.050623]
[1732526207878,0.02812269,98666.0,98665.0,0.354663]
[1732526208075,0.182693,98684.0,98674.0,0.050618]
[1732526208076,0.18220515,98678.0,98674.0,0.050618]
[1732526208378,0.04923637,98677.0,98674.0,0.050618]
[1732526208577,9.421e-05,98681.0,98674.0,0.050618]
[1732526208578,0.050617,98678.0,98674.0,0.050618]
[1732526208975,0.050617,98677.0,98674.0,0.050618]
[1732526209370,0.02796938,98676.0,98674.0,0.0278262]
[1732526209576,0.02796938,98675.0,98674.0,0.0278262]
[1732526211375,0.02796938,98675.0,98674.0,0.02791546]
[1732526212082,0.01075745,98675.0,98674.0,0.02791546]
[1732526214869,0.01576273,98677.0,98676.0,0.050617]
[1732526215372,0.01119031,98677.0,98676.0,0.050617]
[1732526215571,0.01119031,98677.0,98674.0,8.926e-05]
[1732526215779,0.06042315,98676.0,98675.0,0.050618]
[1732526216473,0.06042315,98676.0,98674.0,8.926e-05]
[1732526216673,0.06180831,98675.0,98674.0,8.926e-05]
[1732526216881,0.11104115,98675.0,98674.0,2.036e-05]
[1732526217285,0.12825308,98675.0,98674.0,2.036e-05]
[1732526217972,0.07763508,98675.0,98674.0,2.036e-05]
[1732526218475,0.06042315,98675.0,98674.0,2.036e-05]
[1732526218682,0.06042315,98675.0,98674.0,0.05063836]
[1732526219076,0.07763508,98675.0,98674.0,0.05063836]
[1732526220281,0.01119031,98675.0,98674.0,0.05063836]
[1732526220484,0.16237593,98675.0,98674.0,0.41143836]
[1732526220687,0.01119031,98675.0,98674.0,0.41143836]
[1732526221988,0.01119031,98675.0,98674.0,2.036e-05]
[1732526222182,0.07724298,98675.0,98674.0,2.036e-05]
[1732526223504,0.07725458,98675.0,98674.0,2.036e-05]
[1732526223783,0.02802182,98675.0,98674.0,2.036e-05]
[1732526224304,0.02802182,98675.0,98673.0,0.02784721]
[1732526224474,0.02802182,98674.0,98673.0,0.02784721]
[1732526225274,0.01077762,98674.0,98673.0,0.02784721]
[1732526225482,0.02802182,98674.0,98673.0,0.02792276]
[1732526226383,0.01077762,98674.0,98673.0,0.02792276]
[1732526227085,9.421e-05,98681.0,98673.0,0.02792276]
[1732526227279,9.421e-05,98681.0,98680.0,0.050616]
[1732526228384,0.13156,98693.0,98680.0,0.050616]
[1732526228385,0.01049948,98684.0,98680.0,0.77379301]
[1732526228591,0.1,98700.0,98699.0,0.050606]
[1732526228592,0.10060001,98700.0,98699.0,0.050606]
[1732526228788,0.1,98700.0,98699.0,0.050606]
[1732526233197,0.1,98700.0,98699.0,0.09238796]
[1732526233389,0.0951,98700.0,98699.0,0.09238796]
[1732526234669,0.0951,98700.0,98699.0,0.39634796]
[1732526234797,0.0951,98700.0,98699.0,0.69064241]
[1732526234995,0.0951,98700.0,98699.0,0.51044616]
[1732526235701,0.0951,98700.0,98699.0,0.39634796]
[1732526236396,0.085,98700.0,98699.0,0.57640766]
[1732526236598,0.085,98700.0,98699.0,0.39634796]
[1732526236890,0.0749,98700.0,98699.0,0.5764258]
[1732526237393,0.0648,98700.0,98699.0,0.39634796]
[1732526237795,0.0547,98700.0,98699.0,0.39634796]
[1732526239897,0.0446,98700.0,98699.0,0.39634796]
[1732526240288,0.0446,98700.0,98686.0,0.00056]
[1732526240289,0.050612,98687.0,98686.0,0.00056]
[1732526240491,0.050612,98687.0,98673.0,7.555e-05]
[1732526240492,0.54233864,98687.0,98673.0,7.555e-05]
[1732526240702,0.59295664,98675.0,98673.0,7.555e-05]
[1732526240995,0.59295664,98675.0,98673.0,0.04373672]
[1732526240996,0.39992095,98674.0,98673.0,0.04373672]
[1732526241201,0.03912095,98674.0,98673.0,7.555e-05]
[1732526241390,0.050618,98675.0,98673.0,7.555e-05]
[1732526241591,0.23222129,98675.0,98673.0,7.555e-05]
[1732526241901,0.18160329,98677.0,98673.0,7.555e-05]
[1732526242090,0.18160329,98678.0,98677.0,0.050617]
[1732526242290,0.3608,98695.0,98677.0,0.050617]
[1732526242291,0.1513267,98685.0,98684.0,0.050614]
[1732526242489,0.18160329,98685.0,98678.0,0.13748]
[1732526242691,0.15132479,98679.0,98678.0,0.188096]
[1732526242887,0.15132479,98679.0,98678.0,0.050616]
[1732526242888,0.3608,98679.0,98678.0,0.050616]
[1732526243095,0.3608,98679.0,98673.0,0.13755555]
[1732526243308,0.15132759,98675.0,98673.0,0.13755555]
[1732526243597,0.3608,98679.0,98674.0,0.050618]
[1732526244202,0.3608,98679.0,98675.0,0.050618]
[1732526244203,0.15132939,98676.0,98675.0,0.050618]
[1732526244403,0.0629,98678.0,98673.0,0.13755555]
[1732526244605,0.0629,98678.0,98674.0,0.36396565]
[1732526244794,0.0629,98678.0,98676.0,0.050617]
[1732526245101,0.0629,98678.0,98677.0,0.00316565]
[1732526245312,0.0528,98678.0,98677.0,0.00316565]
[1732526245793,0.0427,98678.0,98677.0,0.00316565]
[1732526245997,0.0329,98692.0,98678.0,0.050616]
[1732526246297,0.0329,98692.0,98688.0,0.050611]
[1732526246505,0.0323,98691.0,98688.0,0.050611]
[1732526246701,0.08291,98691.0,98688.0,0.050611]
[1732526247002,0.0323,98691.0,98681.0,0.050615]
[1732526247199,0.0323,98691.0,98674.0,0.54086929]
[1732526247394,0.0323,98691.0,98690.0,0.050611]
[1732526247604,0.0329,98692.0,98690.0,0.050611]
[1732526249328,0.0315,98699.0,98698.0,0.050607]
[1732526249793,0.0345,98700.0,98698.0,0.050607]
[1732526250606,0.0244,98700.0,98698.0,0.050607]
[1732526251717,0.0244,98700.0,98699.0,0.3608]
[1732526251893,0.0244,98700.0,98698.0,0.050607]
[1732526251894,0.0244,98700.0,98698.0,0.411407]
[1732526253606,0.17567935,98700.0,98698.0,0.411407]
[1732526254313,0.0244,98700.0,98698.0,0.411407]
[1732526254511,0.14545118,98700.0,98698.0,0.411407]
[1732526254804,0.0244,98700.0,98698.0,0.411407]
[1732526255005,0.0244,98700.0,98699.0,0.30396]
[1732526255411,0.0244,98700.0,98699.0,0.41307623]
[1732526255604,0.0143,98700.0,98699.0,0.41307623]
[1732526256609,0.01421627,98700.0,98699.0,0.41307623]
[1732526256951,0.12105118,98705.0,98699.0,0.41307623]
[1732526257103,0.12105118,98705.0,98704.0,0.411403]
[1732526257309,0.13110253,98705.0,98704.0,0.411403]
[1732526257512,0.11114707,98711.0,98704.0,0.78064369]
[1732526257806,0.00012233,98718.0,98717.0,0.050597]
[1732526258009,0.00012233,98718.0,98717.0,0.193717]
[1732526259002,0.00012233,98718.0,98717.0,0.050597]
[1732526259204,0.00012233,98718.0,98710.0,0.3608]
[1732526259511,0.15140168,98718.0,98711.0,0.14312]
[1732526259713,0.15140168,98718.0,98712.0,0.14312]
[1732526259714,0.21567935,98717.0,98712.0,0.14312]
[1732526260302,0.15127935,98716.0,98712.0,0.14312]
[1732526260502,0.0644,98717.0,98712.0,0.14312]
[1732526261108,0.0317,98716.0,98712.0,0.14312]
[1732526262102,0.0317,98716.0,98711.0,0.0506]
[1732526262308,0.0317,98716.0,98713.0,0.050599]
[1732526262897,0.0317,98716.0,98712.0,0.14312]
[1732526262898,0.0317,98716.0,98714.0,0.050598]
[1732526263106,0.0325,98717.0,98713.0,0.3608]
[1732526263310,0.00012233,98718.0,98716.0,0.050598]
[1732526263611,0.00012233,98718.0,98717.0,0.47206547]
[1732526263808,2.233e-05,98718.0,98717.0,0.80804547]
[1732526264608,2.233e-05,98718.0,98717.0,0.95116547]
[1732526266313,0.0001,98740.0,98739.0,0.050586]
[1732526266510,0.0001,98740.0,98736.0,0.14312]
[1732526266712,0.0001,98740.0,98733.0,0.3608]
[1732526266713,0.0001,98740.0,98735.0,0.14308]
[1732526267006,0.0001,98740.0,98733.0,0.3608]
[1732526267217,0.18154019,98765.0,98750.0,0.0399]
[1732526267405,0.29707415,98789.0,98750.0,0.0399]
[1732526267406,0.050556,98798.0,98775.0,0.050567]
[1732526267744,0.0323,98789.0,98787.0,0.3608]
[1732526268614,0.1488,98788.0,98787.0,0.3608]
[1732526269306,0.0323,98789.0,98787.0,0.3608]
[1732526269509,0.01101774,98788.0,98787.0,0.3608]
[1732526269736,0.01101774,98788.0,98787.0,0.411361]
[1732526270338,0.01101774,98788.0,98787.0,0.3608]
[1732526271038,0.46349774,98788.0,98776.0,0.36088393]
[1732526271391,0.46349774,98788.0,98750.0,0.08885963]
[1732526271392,0.3608,98777.0,98756.0,0.00056]
[1732526271640,0.34587256,98787.0,98752.0,0.3608]
[1732526271641,0.01079256,98776.0,98761.0,0.050574]
[1732526271834,0.01079256,98776.0,98752.0,0.3608]
[1732526271835,0.01079256,98775.0,98769.0,0.05057]
[1732526272137,0.0486681,98787.0,98773.0,0.050568]
[1732526272138,0.01079256,98774.0,98773.0,0.050568]
[1732526272535,0.01079256,98774.0,98773.0,0.05069281]
[1732526274344,0.09024225,98786.0,98782.0,0.050564]
[1732526274642,0.1488,98788.0,98784.0,0.3608]
[1732526274643,0.01061306,98785.0,98784.0,0.3608]
[1732526274868,0.1488,98788.0,98784.0,0.411363]
[1732526275039,0.10098832,98787.0,98784.0,0.411363]
[1732526275231,0.23904225,98788.0,98786.0,0.050562]
[1732526275437,0.01076155,98787.0,98786.0,0.050562]
[1732526275628,0.01076155,98787.0,98784.0,0.3608]
[1732526275629,0.02795527,98787.0,98784.0,0.3608]
[1732526275849,0.1488,98788.0,98784.0,0.3608]
[1732526275850,0.02795527,98786.0,98784.0,0.3608]
[1732526276046,0.01076155,98785.0,98784.0,0.3608]
[1732526277553,0.01076155,98785.0,98773.0,0.05069381]
[1732526277554,0.01076155,98785.0,98773.0,0.00012481]
[1732526277757,0.02795527,98784.0,98773.0,0.00012481]
[1732526278039,0.24838118,98783.0,98773.0,0.05069181]
[1732526278244,0.01076155,98782.0,98774.0,0.050567]
[1732526278555,0.02795527,98781.0,98779.0,0.050564]
[1732526278742,0.01076155,98780.0,98773.0,0.00012481]
[1732526278944,0.050566,98776.0,98773.0,0.00012481]
[1732526279146,0.050568,98772.0,98764.0,0.00151855]
[1732526279338,0.41137,98768.0,98764.0,0.00151855]
[1732526279651,0.050571,98766.0,98756.0,0.3608]
[1732526279945,0.3608,98760.0,98741.0,0.3608]
[1732526280159,0.3608,98749.0,98741.0,0.3608]
[1732526280355,0.050581,98747.0,98742.0,9.979e-05]
[1732526280538,0.050583,98743.0,98742.0,9.979e-05]
[1732526280858,0.06134455,98743.0,98742.0,9.979e-05]
[1732526281439,0.18196,98748.0,98742.0,9.979e-05]
[1732526281656,0.18196,98748.0,98746.0,0.050581]
[1732526281832,0.18196,98748.0,98742.0,9.979e-05]
[1732526282038,0.18196,98748.0,98743.0,0.050583]
[1732526282241,0.14876,98748.0,98746.0,0.050581]
[1732526282459,9.283e-05,98754.0,98753.0,0.050578]
[1732526282755,9.283e-05,98754.0,98753.0,0.411378]
[1732526283734,0.08885963,98763.0,98753.0,0.411378]
[1732526283735,0.14876,98756.0,98753.0,0.3608]
[1732526283934,0.14876,98756.0,98746.0,0.050581]
[1732526283935,0.081877,98755.0,98746.0,0.050581]
[1732526284138,0.081877,98755.0,98752.0,0.3608]
[1732526284139,0.0313,98755.0,98752.0,0.3608]
[1732526284675,0.0313,98755.0,98753.0,0.050577]
[1732526285234,0.0313,98755.0,98752.0,0.3608]
[1732526286018,0.0313,98755.0,98744.0,0.3608]
[1732526286019,0.050581,98746.0,98744.0,0.3608]
[1732526286318,0.0312,98745.0,98744.0,0.3608]
[1732526288326,0.14876,98756.0,98752.0,0.050578]
[1732526288519,0.14876,98756.0,98744.0,0.3608]
[1732526288520,0.14876,98756.0,98753.0,0.050578]
[1732526288921,0.14876,98756.0,98744.0,0.3608]
[1732526288922,0.14876,98756.0,98744.0,0.54037252]
[1732526289418,0.15874691,98755.0,98750.0,0.050579]
[1732526289616,0.00998691,98754.0,98750.0,0.050579]
[1732526289927,0.00998691,98754.0,98744.0,0.411942]
[1732526289928,0.06056391,98754.0,98744.0,0.411942]
[1732526290113,0.050577,98754.0,98745.0,0.050582]
[1732526290318,0.050577,98754.0,98744.0,0.3608]
[1732526290319,0.050577,98754.0,98744.0,0.54037252]
[1732526290524,0.050577,98754.0,98747.0,0.050581]
[1732526291012,0.14876,98753.0,98747.0,0.050581]
[1732526291926,0.050582,98745.0,98744.0,0.3608]
[1732526292124,0.050583,98743.0,98742.0,9.979e-05]
[1732526292924,0.083683,98743.0,98742.0,9.979e-05]
[1732526294426,0.0331,98743.0,98742.0,9.979e-05]
[1732526294616,0.18186,98743.0,98742.0,9.979e-05]
[1732526295126,0.09024225,98749.0,98742.0,9.979e-05]
[1732526295921,0.09024225,98748.0,98742.0,9.979e-05]
[1732526296119,0.09024225,98749.0,98742.0,9.979e-05]
[1732526296522,0.050583,98744.0,98742.0,9.979e-05]
[1732526297731,0.3608,98743.0,98742.0,9.979e-05]
[1732526300629,0.3608,98743.0,98717.0,0.17957252]
[1732526300630,0.96464,98743.0,98717.0,0.17957252]
[1732526300933,0.050598,98714.0,98713.0,0.17957252]
[1732526301631,0.050599,98712.0,98711.0,0.00151957]
[1732526301831,0.050599,98712.0,98711.0,0.00160603]
[1732526309733,0.3608,98716.0,98711.0,0.30552603]
[1732526309951,0.00052001,98750.0,98749.0,0.05058]
[1732526310125,0.36088964,98771.0,98749.0,0.3608]
[1732526310126,8.964e-05,98771.0,98749.0,0.3608]
[1732526310331,8.964e-05,98771.0,98768.0,0.05057]
[1732526311141,8.964e-05,98771.0,98766.0,0.3608]
[1732526311335,0.05065864,98771.0,98766.0,0.3608]
[1732526312234,0.05065864,98771.0,98766.0,0.03474409]
[1732526312235,0.050571,98767.0,98766.0,0.03474409]
[1732526312440,0.050571,98767.0,98758.0,0.3608]
[1732526312736,8.964e-05,98771.0,98758.0,0.39554409]
[1732526312939,8.964e-05,98771.0,98766.0,0.3608]
[1732526318442,0.050569,98770.0,98766.0,0.3608]
[1732526318840,8.964e-05,98771.0,98766.0,0.3608]
[1732526318841,0.050571,98767.0,98766.0,0.3608]
[1732526319240,0.050571,98767.0,98758.0,0.39626409]
[1732526319241,0.050573,98762.0,98758.0,0.39554409]
[1732526319545,0.08854085,98768.0,98758.0,0.39554409]
[1732526320150,0.050574,98761.0,98758.0,0.39554409]
[1732526320652,0.08854085,98768.0,98758.0,0.39554409]
[1732526321946,0.050571,98766.0,98758.0,0.39554409]
[1732526322548,0.08854085,98768.0,98758.0,0.39554409]
[1732526322842,0.050573,98763.0,98758.0,0.39554409]
[1732526324445,0.05057,98769.0,98758.0,0.39554409]
[1732526324651,0.08854085,98770.0,98760.0,0.050574]
[1732526325543,0.08854085,98770.0,98758.0,0.39554409]
[1732526325544,0.08854085,98770.0,98763.0,0.050572]
[1732526325862,8.964e-05,98771.0,98766.0,0.3608]
[1732526327441,0.14684,98770.0,98766.0,0.3608]
[1732526327750,0.14684,98770.0,98769.0,0.050569]
[1732526328445,8.964e-05,98771.0,98769.0,0.050569]
[1732526329054,8.964e-05,98771.0,98766.0,0.3608]
[1732526330344,0.14692964,98771.0,98766.0,0.3608]
[1732526331046,0.14692964,98771.0,98758.0,0.03474409]
[1732526331047,0.3608,98768.0,98758.0,0.03474409]
[1732526331354,0.3608,98768.0,98750.0,7.389e-05]
[1732526331355,0.050579,98751.0,98750.0,7.389e-05]
[1732526331542,0.558219,98751.0,98750.0,7.389e-05]
[1732526331742,0.411379,98751.0,98750.0,7.389e-05]
[1732526331949,0.558219,98751.0,98750.0,7.389e-05]
[1732526332549,0.0302,98758.0,98750.0,7.389e-05]
[1732526332757,0.18092657,98766.0,98750.0,7.389e-05]
[1732526332758,0.14684,98761.0,98750.0,7.389e-05]
[1732526333651,0.050571,98766.0,98750.0,0.05065289]
[1732526333845,0.14684,98765.0,98750.0,0.05065289]
[1732526334057,0.14684,98765.0,98750.0,0.13919374]
[1732526334244,0.14684,98765.0,98750.0,0.18348818]
[1732526334245,0.050573,98763.0,98750.0,0.18348818]
[1732526334448,0.050573,98763.0,98750.0,0.05065289]
[1732526334760,0.12058689,98762.0,98750.0,0.08456642]
[1732526335055,0.14684,98761.0,98750.0,0.08456642]
[1732526335554,0.12058689,98760.0,98750.0,0.03398742]
[1732526335761,0.14684,98761.0,98759.0,0.050574]
[1732526336052,0.14684,98761.0,98750.0,0.16682271]
[1732526336255,0.05057,98768.0,98751.0,0.354378]
[1732526336463,0.3608,98786.0,98769.0,0.050569]
[1732526336652,3.06841573,98800.0,98785.0,0.3608]
[1732526336956,3.06841573,98800.0,98795.0,0.411356]
[1732526337155,3.06841573,98800.0,98795.0,0.050556]
[1732526337544,3.06841573,98800.0,98796.0,0.00011477]
[1732526339550,3.06893574,98800.0,98796.0,0.00011477]
[1732526339955,3.06893574,98800.0,98796.0,0.1794107]
[1732526340163,3.06889231,98800.0,98799.0,0.050554]
[1732526340355,3.06889231,98800.0,98799.0,0.22967865]
[1732526340663,3.0683723,98800.0,98799.0,0.15969601]
[1732526340965,3.0683723,98800.0,98799.0,0.050554]
[1732526341262,3.0683723,98800.0,98799.0,0.354194]
[1732526341656,3.0683723,98800.0,98799.0,0.467734]
[1732526343063,3.0683723,98800.0,98799.0,0.767734]
[1732526343064,2.91661366,98800.0,98799.0,0.767734]
[1732526343561,2.91661366,98800.0,98799.0,0.614534]
[1732526343865,2.91661366,98800.0,98799.0,0.467734]
[1732526344263,2.91661366,98800.0,98799.0,0.164094]
[1732526344471,2.91661366,98800.0,98799.0,0.050554]
[1732526344867,2.91661366,98800.0,98796.0,0.03484166]
[1732526344868,0.050555,98797.0,98796.0,0.03484166]
[1732526345176,0.050555,98797.0,98796.0,0.00011477]
[1732526345868,3.06393367,98800.0,98796.0,0.00011477]
[1732526346069,0.12068923,98797.0,98796.0,0.00011477]
[1732526346368,0.12068989,98797.0,98796.0,0.00011477]
[1732526346857,0.12068989,98798.0,98796.0,0.00011477]
[1732526347262,0.12068989,98799.0,98796.0,0.00011477]
[1732526347667,3.03782356,98800.0,98796.0,0.00011477]
[1732526347873,3.03730355,98800.0,98796.0,0.00011477]
[1732526348459,3.03730355,98800.0,98798.0,0.050555]
[1732526348662,2.91661366,98800.0,98798.0,0.050555]
[1732526350370,2.91661366,98800.0,98796.0,0.00011477]
[1732526351166,2.96716766,98800.0,98796.0,0.00011477]
[1732526351963,0.050554,98799.0,98796.0,0.00011477]
[1732526352158,0.3608,98798.0,98796.0,0.00011477]
[1732526352659,0.1468,98797.0,98796.0,0.00011477]
[1732526353463,0.411355,98798.0,98796.0,0.00011477]
[1732526355062,0.30364,98797.0,98796.0,0.00011477]
[1732526355663,0.45044,98797.0,98796.0,0.00011477]
[1732526356181,0.411355,98798.0,98796.0,0.00011477]
[1732526356182,0.3608,98798.0,98796.0,0.00011477]
[1732526356471,0.050555,98797.0,98796.0,0.00011477]
[1732526357160,0.14816,98797.0,98796.0,0.00011477]
[1732526360987,0.4839,98797.0,98796.0,0.00011477]
[1732526363268,0.8447,98797.0,98796.0,0.00011477]
[1732526364463,2.91721367,98800.0,98796.0,0.00011477]
[1732526364663,2.91661366,98800.0,98799.0,0.050554]
[1732526364881,2.70414649,98800.0,98799.0,0.050554]
[1732526365075,2.70414649,98800.0,98799.0,0.354194]
[1732526365491,2.70414649,98800.0,98799.0,0.050554]
[1732526366773,2.70414649,98800.0,98796.0,0.03495112]
[1732526366975,2.70414649,98800.0,98796.0,0.00011477]
[1732526367272,0.1510403,98799.0,98796.0,0.00011477]
[1732526367476,2.70414649,98800.0,98796.0,0.00011477]
[1732526367477,2.85518679,98800.0,98796.0,0.00011477]
[1732526367972,2.70414649,98800.0,98796.0,0.00011477]
[1732526368177,0.1482,98799.0,98797.0,0.050555]
[1732526369976,0.1482,98799.0,98796.0,0.00011477]
[1732526369977,2.70414649,98800.0,98799.0,0.050554]
[1732526371067,2.70414649,98800.0,98796.0,0.00011477]
[1732526371375,0.1510403,98799.0,98796.0,0.00011477]
[1732526371887,0.09077675,98798.0,98796.0,0.05067077]
[1732526372176,2.5546665,98800.0,98799.0,0.050554]
[1732526372463,2.55414649,98800.0,98799.0,0.050554]
[1732526373194,2.67518382,98800.0,98799.0,0.050554]
[1732526373481,2.67518382,98800.0,98799.0,0.354194]
[1732526373876,2.55414649,98800.0,98799.0,0.28951561]
[1732526374175,2.55414649,98800.0,98799.0,0.354194]
[1732526374376,2.55414649,98800.0,98799.0,0.28951561]
[1732526374679,2.55414649,98800.0,98799.0,0.59315561]
[1732526374984,2.55414649,98800.0,98799.0,0.59325617]
[1732526375681,2.55414649,98800.0,98799.0,0.354194]
[1732526375883,2.55414649,98800.0,98799.0,0.59328612]
[1732526376084,2.55414649,98800.0,98799.0,0.354194]
[1732526376586,2.53674649,98800.0,98799.0,0.354194]
[1732526376784,2.53674649,98800.0,98799.0,0.050554]
[1732526376993,2.51964649,98800.0,98799.0,0.050554]